lending/lending_fUSD_20241103
["ID","MTS","AMOUNT","RATE_DAILY","PERIOD"]
[341215044,1730656237814,-243.16037979,0.00036828,2]
[341215045,1730656237824,-209.74371887,0.00036893,2]
[341215046,1730656237872,-360.53268373,0.00036893,2]
[341215047,1730656237886,-312.6746961,0.00036893,2]
[341215048,1730656237957,-321.49431647,0.00036893,2]
[341215072,1730656239919,-1349.97458483,0.00036893,2]
[341215073,1730656239929,-177.66,0.00036981,120]
[341215074,1730656239938,-977.59078517,0.00036984,2]
[341215075,1730656239949,-22.40921483,0.00036984,2]
[341215076,1730656239959,-516.73,0.00037052,2]
[341215077,1730656239968,-198.20925708,0.0003763,49]
[341215078,1730656241798,-415.93274292,0.0003763,49]
[341215079,1730656241807,-2038.66725708,0.00037797,2]
[341215080,1730656241819,-1860.51454548,0.00037797,2]
[341215081,1730656241968,-2136.05235002,0.00037797,2]
[341215082,1730656241980,-408.370001,0.00037797,2]
[341215089,1730656242960,-8298.3038664,0.00037797,2]
[341215097,1730656510421,154.93,0.00015342,2]
[341215102,1730657159379,158.09,0.00015342,2]
[341215119,1730657431977,-250.0,0.00021,2]
[341215120,1730657431986,-50.0,0.000228,2]
[341215121,1730657431997,-561.35570101,0.000228,2]
[341215122,1730657432011,-671.44271411,0.000229,2]
[341215123,1730657436250,-367.32,0.000229,2]
[341215124,1730657436346,-790.23728589,0.000229,2]
[341215125,1730657436356,-1010.51210735,0.000229,2]
[341215126,1730657436366,-300.0,0.00023,2]
[341215127,1730657436375,-1749.21922239,0.00026,2]
[341215128,1730657436386,-251.70953894,0.00026,2]
[341215131,1730657437973,-455.77207641,0.00026,2]
[341215132,1730657437992,-2533.45061651,0.00026,2]
[341215133,1730657438002,-302.553,0.0003,2]
[341215134,1730657438015,-285.66224601,0.0003,2]
[341215135,1730657438085,-16.89075399,0.0003,2]
[341215136,1730657438095,-169.387,0.0003105,2]
[341215137,1730657438104,-135.2174419,0.0003105,2]
[341215138,1730657438115,-15.7725581,0.0003105,2]
[341215139,1730657438124,-822.85,0.00034583,2]
[341215140,1730657438134,-534.76,0.00034711,2]
[341215141,1730657438143,-2643.13,0.00034711,2]
[341215142,1730657438153,-214.59,0.00034856,2]
[341215143,1730657438164,-859.93,0.00035474,2]
[341215144,1730657438174,-2666.71755692,0.00035519,2]
[341215145,1730657438338,-3104.75625834,0.00035519,2]
[341215189,1730657440020,-489.47999999,0.00035519,2]
[341215190,1730657440114,-966.36618475,0.00035519,2]
[341215191,1730657440124,-153.0,0.00035616,2]
[341215192,1730657440134,-153.0,0.00035616,2]
[341215193,1730657440143,-31.49808913,0.00035616,2]
[341215194,1730657440289,-121.50191087,0.00035616,2]
[341215195,1730657440299,-153.0,0.00035616,2]
[341215196,1730657440309,-58.77536588,0.00035616,2]
[341215197,1730657440389,-94.22463412,0.00035616,2]
[341215199,1730657440399,-153.0,0.00035616,2]
[341215200,1730657440408,-153.0,0.00035616,2]
[341215201,1730657440418,-153.0,0.00035616,2]
[341215202,1730657440427,-34.07526588,0.00035616,2]
[341215206,1730657443568,-118.92473412,0.00035616,2]
[341215207,1730657443577,-153.0,0.00035616,2]
[341215208,1730657443587,-153.0,0.00035616,2]
[341215209,1730657443597,-177.77,0.00035647,2]
[341215210,1730657443606,-158.58,0.00035667,2]
[341215211,1730657443616,-150.0,0.00035673,7]
[341215212,1730657443626,-250.0,0.00035682,2]
[341215213,1730657443646,-500.0,0.00035689,2]
[341215214,1730657443656,-305.78,0.00035715,10]
[341215215,1730657443666,-462.26,0.00035724,2]
[341215216,1730657443677,-22702.75954338,0.00035725,3]
[341215217,1730657443687,-9764.10915204,0.00035725,3]
[341215218,1730657443738,-1031.18563792,0.00035725,3]
[341215225,1730657446285,-7033.79919372,0.00035725,3]
[341215229,1730657826511,154.44,0.00015342,2]
[341215230,1730657829586,210.8415,0.00015283,2]
[341215231,1730658047743,-211.0,0.00017259,2]
[341215232,1730658047771,-508.0,0.00017259,2]
[341215233,1730658047797,-85856.0,0.0001726,3]
[341215234,1730658307895,13425.0,0.00016,2]
[341215235,1730658307930,50000.0,0.00016,2]
[341215236,1730658307972,1191025.16111507,0.00016,2]
[341215237,1730658319935,2820.10482483,9e-05,2]
[341215238,1730658328829,156.54,0.00015342,2]
[341215239,1730658329990,5975.07580155,0.000101,2]
[341215254,1730658483356,988.13722415,0.000145,3]
[341215255,1730658485545,49838.1677852,0.00015,2]
[341215274,1730658632083,-6598.69644645,0.0001726,2]
[341215275,1730658632097,-332.82649927,0.0001726,2]
[341215279,1730658632373,-2102.2613235,0.0001726,2]
[341215280,1730658632394,-941.97173604,0.0001726,2]
[341215296,1730658638144,-13048.52544531,0.0001726,2]
[341215297,1730658638159,-248.98175969,0.00018106,2]
[341215298,1730658638170,-7155.2907968,0.0001892,2]
[341215299,1730658638219,-4500.17301014,0.0001892,2]
[341215302,1730658640385,-1763.74624,0.0001892,2]
[341215308,1730658644517,-4554.49975946,0.0001892,2]
[341215309,1730658644526,-690.71349641,0.0002,2]
[341215313,1730658644607,-380.84365324,0.0002,2]
[341215314,1730658644617,-10319.6175368,0.00021,2]
[341215315,1730658644626,-250.0,0.00021,2]
[341215316,1730658644635,-2777.64469645,0.00021,2]
[341215317,1730658644647,-177.76,0.00021918,2]
[341215318,1730658644657,-62895.07127874,0.00022,2]
[341215319,1730658644666,-2435.09,0.00022,2]
[341215320,1730658644676,-372.0,0.00023,2]
[341215321,1730658644686,-300.0,0.00023,2]
[341215322,1730658644696,-350.0,0.00025,2]
[341215323,1730658644706,-156.54,0.00026401,2]
[341215324,1730658644715,-400.0,0.00027,2]
[341215325,1730658644725,-450.0,0.00029,2]
[341215326,1730658644735,-222.93975,0.0003,2]
[341215327,1730658644746,-574.2,0.00032436,2]
[341215328,1730658644757,-2236.03722188,0.00033,7]
[341215329,1730658644766,-591.878,0.00033022,2]
[341215330,1730658644776,-172.01,0.00033605,2]
[341215331,1730658644786,-158.21,0.00033854,2]
[341215332,1730658644795,-151.8,0.00033924,2]
[341215333,1730658644805,-503.110991,0.00034,26]
[341215334,1730658644814,-248.37514065,0.00034078,2]
[341215335,1730658644826,-236.80485935,0.00034078,2]
[341215336,1730658644836,-1000.0,0.00034226,2]
[341215337,1730658644845,-1000.0,0.0003423,2]
[341215338,1730658644855,-150.0,0.00034305,7]
[341215339,1730658644864,-12769.5343497,0.00034309,2]
[341215340,1730658644876,-2219.80070374,0.00034309,2]
[341215341,1730658644889,-8910.66494656,0.00034309,2]
[341215342,1730658644898,-231.13,0.00034326,2]
[341215343,1730658644908,-186.371,0.00034326,2]
[341215344,1730658644918,-1000.0,0.0003444,2]
[341215345,1730658644927,-574.2,0.000347,2]
[341215346,1730658644937,-500.0,0.00035,26]
[341215347,1730658644948,-158.21,0.00035123,2]
[341215348,1730658644958,-764.22994747,0.00035238,15]
[341215349,1730658644968,-345.88,0.0003531,2]
[341215350,1730658644978,-312.37242517,0.00035337,7]
[341215351,1730658644988,-1807.32870263,0.0003537,2]
[341215352,1730658644998,-1852.42,0.0003551,2]
[341215353,1730658645008,-340.36673282,0.00035546,2]
[341215354,1730658645018,-304.04,0.00035614,2]
[341215355,1730658645028,-2000.0,0.00035725,2]
[341215356,1730658645038,-200.0,0.00035725,2]
[341215357,1730658645048,-220.72,0.00035739,2]
[341215358,1730658645059,-170.9,0.00035764,2]
[341215359,1730658645069,-500.0,0.00036,26]
[341215360,1730658645079,-200.0,0.00036082,2]
[341215361,1730658645089,-150.0,0.00036164,2]
[341215362,1730658645100,-361.4,0.00036164,2]
[341215363,1730658645109,-150.0,0.00036164,2]
[341215364,1730658645119,-150.0,0.00036164,2]
[341215365,1730658645128,-361.4,0.00036164,2]
[341215366,1730658645135,-150.0,0.00036164,2]
[341215367,1730658645152,-432.17,0.00036164,2]
[341215369,1730658645160,-448.99,0.00036164,2]
[341215371,1730658645168,-361.4,0.00036164,2]
[341215372,1730658645178,-150.0,0.00036164,2]
[341215373,1730658645188,-764.22994738,0.00036199,15]
[341215374,1730658645199,-491.314,0.0003632,44]
[341215375,1730658645209,-170.06,0.00036355,2]
[341215376,1730658645220,-158.21,0.00036392,2]
[341215377,1730658645230,-200.0,0.00036443,2]
[341215378,1730658645239,-361.4,0.00036503,2]
[341215379,1730658645249,-150.0,0.00036503,2]
[341215380,1730658645258,-150.0,0.00036503,2]
[341215381,1730658645268,-432.17,0.00036503,2]
[341215382,1730658645278,-1169.67795473,0.0003681,2]
[341215383,1730658645288,-574.2,0.00036964,2]
[341215384,1730658645297,-150.0,0.00036986,2]
[341215385,1730658645307,-432.17,0.00036986,2]
[341215386,1730658645316,-150.0,0.00036986,2]
[341215387,1730658645326,-482.85,0.00036986,2]
[341215388,1730658645337,-432.17,0.00036986,2]
[341215389,1730658645346,-150.0,0.00036986,2]
[341215390,1730658645356,-432.17,0.00036986,2]
[341215391,1730658645366,-366.0,0.00036986,2]
[341215392,1730658645375,-432.17,0.00036986,2]
[341215393,1730658645389,-150.0,0.00036986,2]
[341215394,1730658645399,-432.17,0.00036986,2]
[341215395,1730658645409,-150.0,0.00036986,2]
[341215396,1730658645419,-150.0,0.00036986,2]
[341215397,1730658645430,-432.17,0.00036986,2]
[341215398,1730658645440,-150.0,0.00036986,2]
[341215399,1730658645449,-432.17,0.00036986,2]
[341215400,1730658645460,-150.0,0.00036986,2]
[341215401,1730658645470,-432.17,0.00036986,2]
[341215402,1730658645480,-150.0,0.00036986,2]
[341215403,1730658645491,-432.17,0.00036986,2]
[341215404,1730658645501,-150.0,0.00036986,2]
[341215405,1730658645510,-432.17,0.00036986,2]
[341215406,1730658645520,-432.17,0.00036986,2]
[341215407,1730658645529,-150.0,0.00036986,2]
[341215408,1730658645540,-432.17,0.00036986,2]
[341215409,1730658645550,-150.0,0.00036986,2]
[341215410,1730658645561,-150.0,0.00036986,2]
[341215411,1730658645572,-432.17,0.00036986,2]
[341215412,1730658645581,-432.17,0.00036986,2]
[341215413,1730658645591,-150.0,0.00036986,2]
[341215414,1730658645602,-432.17,0.00036986,2]
[341215415,1730658645612,-150.0,0.00036986,2]
[341215416,1730658645622,-432.17,0.00036986,2]
[341215417,1730658645632,-432.17,0.00036986,2]
[341215418,1730658645644,-239.77,0.00036986,2]
[341215419,1730658645654,-432.17,0.00036986,2]
[341215420,1730658645665,-432.17,0.00036986,2]
[341215421,1730658645675,-484.49,0.00036986,2]
[341215422,1730658645685,-715.72,0.00036986,2]
[341215423,1730658645695,-431.71,0.00036986,2]
[341215424,1730658645705,-500.0,0.00037,26]
[341215425,1730658645715,-764.22994738,0.00037161,15]
[341215426,1730658645726,-977.6207,0.0003732,2]
[341215427,1730658645735,-322.2292,0.0003732,2]
[341215428,1730658645746,-156.54,0.0003746,2]
[341215429,1730658645756,-15303.8205,0.0003758,2]
[341215430,1730658645767,-220.0,0.00037597,2]
[341215431,1730658645777,-527.1994,0.00037598,2]
[341215432,1730658645787,-200.0,0.000376,13]
[341215433,1730658645797,-158.21,0.00037661,2]
[341215434,1730658645806,-500.0,0.00037679,2]
[341215435,1730658645816,-456.97610878,0.00037679,2]
[341215436,1730658645826,-261.02029057,0.00037679,2]
[341215437,1730658645835,-500.0,0.00037679,2]
[341215438,1730658645845,-500.0,0.00037679,2]
[341215439,1730658645855,-755.08,0.00037679,2]
[341215440,1730658645864,-500.0,0.00037679,2]
[341215441,1730658645874,-500.0,0.00037679,2]
[341215442,1730658645884,-500.0,0.00037679,2]
[341215443,1730658645896,-755.66,0.00037679,2]
[341215444,1730658645906,-500.0,0.00037679,2]
[341215445,1730658645916,-500.0,0.00037679,2]
[341215446,1730658645926,-201.18261641,0.00037679,2]
[341215447,1730658645936,-500.0,0.00037679,2]
[341215448,1730658645946,-500.0,0.00037679,2]
[341215449,1730658645956,-500.0,0.00037679,2]
[341215450,1730658645966,-500.0,0.00037679,2]
[341215451,1730658645976,-500.0,0.00037679,2]
[341215452,1730658645987,-308666.27812181,0.0003768,2]
[341215453,1730658645997,-563.43247609,0.00037697,2]
[341215454,1730658646007,-503.89443267,0.00037697,2]
[341215455,1730658646017,-500.0,0.00037697,2]
[341215456,1730658646027,-500.0,0.00037697,2]
[341215457,1730658646038,-629.65802032,0.00037697,2]
[341215458,1730658646048,-500.0,0.00037697,2]
[341215459,1730658646058,-500.0,0.00037697,2]
[341215460,1730658646068,-500.0,0.00037697,2]
[341215461,1730658646077,-557.26981374,0.00037697,2]
[341215462,1730658646087,-500.0,0.00037697,2]
[341215463,1730658646097,-500.0,0.00037697,2]
[341215464,1730658646107,-206.47442853,0.00037697,2]
[341215465,1730658646116,-508.57481978,0.00037697,2]
[341215466,1730658646126,-500.0,0.00037697,2]
[341215467,1730658646136,-500.0,0.00037697,2]
[341215468,1730658646146,-500.0,0.00037697,2]
[341215469,1730658646156,-500.0,0.00037697,2]
[341215470,1730658646166,-500.0,0.00037697,2]
[341215471,1730658646176,-500.0,0.00037697,2]
[341215472,1730658646186,-500.0,0.00037697,2]
[341215473,1730658646196,-500.0,0.00037697,2]
[341215474,1730658646206,-500.0,0.00037697,2]
[341215475,1730658646216,-546.74409679,0.00037697,2]
[341215476,1730658646226,-513.30654308,0.00037697,2]
[341215477,1730658646236,-500.0,0.00037697,2]
[341215478,1730658646245,-558.40027072,0.00037697,2]
[341215479,1730658646255,-500.0,0.00037697,2]
[341215480,1730658646265,-438.36644853,0.00037697,2]
[341215481,1730658646275,-500.0,0.00037697,2]
[341215482,1730658646285,-500.0,0.00037697,2]
[341215483,1730658646295,-500.0,0.00037697,2]
[341215484,1730658646305,-500.0,0.00037697,2]
[341215485,1730658646315,-500.0,0.00037697,2]
[341215486,1730658646325,-500.0,0.00037697,2]
[341215487,1730658646335,-500.0,0.00037697,2]
[341215488,1730658646345,-263.10225491,0.00037697,2]
[341215489,1730658646354,-500.0,0.00037697,2]
[341215490,1730658646364,-500.0,0.00037697,2]
[341215491,1730658646375,-500.0,0.00037697,2]
[341215492,1730658646389,-645.82,0.00037697,2]
[341215493,1730658646399,-500.0,0.00037697,2]
[341215494,1730658646409,-500.0,0.00037697,2]
[341215495,1730658646419,-500.0,0.00037697,2]
[341215496,1730658646429,-500.0,0.00037697,2]
[341215497,1730658646439,-500.0,0.00037697,2]
[341215498,1730658646449,-500.0,0.00037697,2]
[341215499,1730658646460,-500.0,0.00037697,2]
[341215500,1730658646470,-500.0,0.00037697,2]
[341215501,1730658646479,-2000.0,0.00037697,2]
[341215502,1730658646489,-500.0,0.00037697,2]
[341215503,1730658646498,-500.0,0.000377,13]
[341215504,1730658646508,-302.553,0.00037779,2]
[341215505,1730658646518,-165.83666115,0.000378,2]
[341215506,1730658646527,-700.0,0.000378,13]
[341215507,1730658646537,-515.800662,0.00037807,2]
[341215508,1730658646547,-341.78757861,0.00037807,2]
[341215509,1730658646557,-184.69,0.00037807,2]
[341215510,1730658646567,-500.0,0.00037807,2]
[341215511,1730658646576,-500.0,0.00037807,2]
[341215512,1730658646586,-500.0,0.00037807,2]
[341215513,1730658646595,-500.0,0.00037807,2]
[341215514,1730658646605,-512.03261448,0.00037807,2]
[341215515,1730658646614,-500.0,0.00037807,2]
[341215516,1730658646623,-500.0,0.00037807,2]
[341215517,1730658646633,-500.0,0.00037807,2]
[341215518,1730658646643,-624.97,0.00037807,2]
[341215519,1730658646652,-513.45652421,0.00037807,2]
[341215520,1730658646662,-500.0,0.00037807,2]
[341215521,1730658646672,-500.0,0.00037807,2]
[341215522,1730658646682,-500.0,0.00037807,2]
[341215523,1730658646692,-552.33350568,0.00037807,2]
[341215524,1730658646701,-500.0,0.00037807,2]
[341215525,1730658646710,-500.0,0.00037807,2]
[341215526,1730658646720,-500.0,0.00037807,2]
[341215527,1730658646730,-500.0,0.00037807,2]
[341215528,1730658646740,-500.0,0.00037807,2]
[341215529,1730658646749,-500.0,0.00037807,2]
[341215530,1730658646759,-500.0,0.00037807,2]
[341215531,1730658646768,-500.0,0.00037807,2]
[341215532,1730658646778,-500.0,0.00037807,2]
[341215533,1730658646787,-500.0,0.00037807,2]
[341215534,1730658646796,-500.0,0.00037807,2]
[341215535,1730658646806,-500.0,0.00037807,2]
[341215536,1730658646815,-500.0,0.00037807,2]
[341215537,1730658646824,-500.0,0.00037807,2]
[341215538,1730658646835,-512.79172304,0.00037807,2]
[341215539,1730658646844,-173.88091315,0.00037807,2]
[341215540,1730658646853,-181.03789744,0.00037807,2]
[341215541,1730658646863,-500.0,0.00037807,2]
[341215542,1730658646872,-529.19943769,0.00037807,2]
[341215543,1730658646881,-162.63847391,0.00037807,2]
[341215544,1730658646893,-500.0,0.00037807,2]
[341215545,1730658646902,-509.12660941,0.00037807,2]
[341215546,1730658646912,-500.0,0.00037807,2]
[341215547,1730658646921,-516.5878951,0.00037807,2]
[341215548,1730658646931,-512.77800255,0.00037807,2]
[341215549,1730658646941,-484.78111832,0.00037807,2]
[341215550,1730658646950,-633.66543023,0.00037807,2]
[341215551,1730658646960,-500.0,0.00037807,2]
[341215552,1730658646969,-500.0,0.00037807,2]
[341215553,1730658646979,-500.0,0.00037807,2]
[341215554,1730658646988,-557.1299728,0.00037807,2]
[341215555,1730658646998,-201.359813,0.00037808,7]
[341215556,1730658647007,-151.0,0.00037808,7]
[341215557,1730658647017,-151.0,0.00037808,7]
[341215558,1730658647027,-151.0,0.00037808,7]
[341215559,1730658647037,-151.0,0.00037899,7]
[341215560,1730658647047,-620.96733341,0.00037899,2]
[341215561,1730658647057,-500.0,0.00037899,2]
[341215562,1730658647067,-500.0,0.00037899,2]
[341215563,1730658647077,-500.0,0.00037899,2]
[341215564,1730658647086,-157.349718,0.00037899,7]
[341215565,1730658647096,-151.0,0.00037899,7]
[341215566,1730658647105,-151.0,0.00037899,7]
[341215567,1730658647115,-151.0,0.00037899,7]
[341215568,1730658647125,-176.977772,0.00037899,7]
[341215569,1730658647135,-151.0,0.00037899,7]
[341215570,1730658647148,-151.0,0.00037899,7]
[341215571,1730658647158,-151.0,0.00037899,7]
[341215572,1730658647167,-1000.06683139,0.000379,2]
[341215573,1730658647177,-1000.0,0.000379,13]
[341215574,1730658647186,-1605.44399862,0.000379,2]
[341215575,1730658647196,-178.30205086,0.00037943,2]
[341215576,1730658647205,-500.0,0.00037953,2]
[341215577,1730658647215,-471.15,0.00037953,2]
[341215578,1730658647225,-755.08,0.00037953,2]
[341215580,1730658647234,-500.0,0.00037953,2]
[341215582,1730658647244,-500.0,0.00037953,2]
[341215584,1730658647253,-487.1594826,0.00037953,2]
[341215586,1730658647263,-755.66,0.00037953,2]
[341215588,1730658647272,-500.0,0.00037953,2]
[341215590,1730658647281,-500.0,0.00037953,2]
[341215592,1730658647290,-507.88,0.00037953,2]
[341215594,1730658647300,-500.0,0.00037953,2]
[341215596,1730658647309,-500.0,0.00037953,2]
[341215598,1730658647318,-500.0,0.00037953,2]
[341215600,1730658647328,-500.0,0.0003797,2]
[341215602,1730658647337,-500.0,0.0003797,2]
[341215604,1730658647347,-500.0,0.0003797,2]
[341215606,1730658647357,-500.0,0.0003797,2]
[341215608,1730658647366,-500.0,0.0003797,2]
[341215610,1730658647375,-500.0,0.0003797,2]
[341215612,1730658647387,-500.0,0.0003797,2]
[341215614,1730658647398,-500.0,0.0003797,2]
[341215616,1730658647407,-11233.06,0.0003797,2]
[341215618,1730658647416,-500.0,0.0003797,2]
[341215620,1730658647426,-500.0,0.0003797,2]
[341215621,1730658647435,-500.0,0.0003797,2]
[341215623,1730658647444,-500.0,0.0003797,2]
[341215625,1730658647453,-925.07,0.0003797,2]
[341215627,1730658647464,-500.0,0.0003797,2]
[341215629,1730658647474,-1486.47,0.0003797,2]
[341215631,1730658647484,-500.0,0.0003797,2]
[341215633,1730658647494,-706.619081,0.0003797,7]
[341215635,1730658647503,-500.0,0.0003797,2]
[341215637,1730658647513,-706.619081,0.0003797,7]
[341215639,1730658647522,-151.0,0.0003797,7]
[341215641,1730658647532,-500.0,0.0003797,2]
[341215643,1730658647541,-151.0,0.0003797,7]
[341215645,1730658647550,-183.740683,0.0003797,7]
[341215647,1730658647560,-183.740683,0.0003797,7]
[341215649,1730658647570,-151.0,0.0003797,7]
[341215651,1730658647580,-500.0,0.00037971,2]
[341215653,1730658647589,-500.0,0.00037971,2]
[341215655,1730658647600,-333.63496864,0.00037971,2]
[341215657,1730658647610,-500.0,0.00037971,2]
[341215659,1730658647619,-181.96,0.00037971,2]
[341215661,1730658647629,-221.93081159,0.00037971,2]
[341215663,1730658647639,-500.0,0.00037971,2]
[341215665,1730658647649,-151.0,0.00037971,7]
[341215667,1730658647659,-151.0,0.00037971,7]
[341215669,1730658647668,-151.0,0.00037971,7]
[341215671,1730658647678,-598.3018661,0.00037971,2]
[341215673,1730658647687,-151.0,0.00037971,7]
[341215675,1730658647696,-151.0,0.00037971,7]
[341215677,1730658647706,-500.0,0.00037971,2]
[341215679,1730658647715,-500.0,0.00037971,2]
[341215681,1730658647726,-500.0,0.00037971,2]
[341215683,1730658647737,-500.0,0.00037971,2]
[341215685,1730658647747,-151.0,0.00037971,7]
[341215687,1730658647757,-151.0,0.00037971,7]
[341215689,1730658647766,-500.0,0.00037971,2]
[341215691,1730658647776,-151.0,0.00037971,7]
[341215693,1730658647785,-151.0,0.00037971,7]
[341215695,1730658647794,-365.96,0.00037971,2]
[341215697,1730658647804,-299.398683,0.00037971,7]
[341215699,1730658647813,-522.61,0.00037971,2]
[341215701,1730658647823,-500.0,0.00037971,2]
[341215702,1730658647833,-263.464404,0.00037971,7]
[341215704,1730658647842,-151.0,0.00037971,7]
[341215706,1730658647852,-271.094118,0.00037971,7]
[341215708,1730658647862,-304.6,0.00037971,2]
[341215710,1730658647871,-151.0,0.00037971,7]
[341215711,1730658647880,-500.0,0.00037971,2]
[341215712,1730658647890,-500.0,0.00037971,2]
[341215713,1730658648018,-151.0,0.00037971,7]
[341215714,1730658648028,-500.0,0.00037971,2]
[341215715,1730658648038,-1000.0,0.00037971,2]
[341215716,1730658648048,-210.08387938,0.00037973,2]
[341215717,1730658648058,-500.0,0.00037973,5]
[341215718,1730658648067,-500.0,0.00037973,5]
[341215719,1730658648076,-500.0,0.00037973,5]
[341215720,1730658648086,-169.37,0.0003798,2]
[341215721,1730658648095,-2209.37553995,0.00037998,2]
[341215722,1730658648105,-942.01185746,0.00037998,2]
[341215723,1730658648115,-151.0,0.00037998,7]
[341215724,1730658648124,-151.0,0.00037998,7]
[341215725,1730658648134,-500.0,0.00037998,2]
[341215726,1730658648145,-500.0,0.00037998,2]
[341215727,1730658648155,-155.334306,0.00037998,7]
[341215728,1730658648165,-151.0,0.00037998,7]
[341215729,1730658648175,-151.0,0.00037998,7]
[341215730,1730658648185,-500.0,0.00037998,2]
[341215731,1730658648195,-500.0,0.00037998,2]
[341215732,1730658648204,-224.095769,0.00037998,7]
[341215733,1730658648214,-151.0,0.00037998,3]
[341215734,1730658648224,-1365.96060906,0.00037999,10]
[341215735,1730658648233,-533.91350891,0.00037999,2]
[341215736,1730658648244,-156.49753,0.00037999,7]
[341215737,1730658648253,-151.0,0.00037999,7]
[341215738,1730658648263,-151.0,0.00037999,7]
[341215739,1730658648272,-151.0,0.00037999,7]
[341215740,1730658648282,-500.0,0.00037999,2]
[341215741,1730658648291,-500.0,0.00037999,2]
[341215742,1730658648301,-500.0,0.00037999,2]
[341215743,1730658648311,-500.0,0.00037999,2]
[341215744,1730658648321,-500.0,0.00037999,2]
[341215745,1730658648331,-345.04772075,0.00037999,2]
[341215746,1730658648340,-213.0,0.00038,5]
[341215747,1730658648350,-17027.06965753,0.00038,3]
[341215748,1730658648359,-81826.08547768,0.00038,3]
[341215749,1730658648391,-19405.3,0.00034133,2]
[341215750,1730658648401,-16191.687259,0.00038,3]
[341215751,1730658648412,-1224.48670172,0.00038,3]
[341215752,1730658648424,-6963.9,0.00038,3]
[341215753,1730658648499,-139000.00000006,0.00038,3]
[341215757,1730658981821,156.8,0.00015342,2]
[341215759,1730659487605,154.93,0.00015342,2]
[341215837,1730659832512,-249.0,0.00019725,2]
[341215838,1730659832522,-177.76,0.00021918,2]
[341215839,1730659832531,-164.292,0.0002639,3]
[341215840,1730659832540,-164.606,0.0002727,5]
[341215841,1730659832550,-183.038,0.0003,2]
[341215842,1730659832559,-183.038,0.0003,2]
[341215843,1730659832569,-164.259,0.0003194,2]
[341215845,1730659832578,-567.56,0.00033831,2]
[341215847,1730659832589,-160.9,0.00034741,2]
[341215849,1730659832599,-445.0,0.00035,2]
[341215851,1730659832608,-6906.0,0.00035121,2]
[341215853,1730659832618,-250.0,0.00035377,2]
[341215855,1730659832628,-250.0,0.00035455,120]
[341215857,1730659832637,-150.0,0.00035488,7]
[341215859,1730659832646,-685.75,0.00035492,2]
[341215861,1730659832656,-150.0,0.00035506,2]
[341215862,1730659832666,-500.0,0.00035522,61]
[341215863,1730659832675,-23900.0,0.00035544,2]
[341215864,1730659832685,-800.0,0.00035575,2]
[341215865,1730659832694,-638.08,0.00035602,2]
[341215866,1730659832704,-384.03,0.00035629,2]
[341215867,1730659832713,-2751.0,0.00035771,120]
[341215868,1730659832723,-489.48,0.00035771,2]
[341215869,1730659832732,-525.29,0.00035811,2]
[341215870,1730659832741,-200.0,0.00035832,2]
[341215871,1730659832751,-165.82,0.00035856,120]
[341215872,1730659832760,-160.53,0.00035938,2]
[341215873,1730659832773,-1624.12,0.00035988,2]
[341215874,1730659832782,-152.24,0.00035995,120]